{"text_format":"3","workbook":"xlsx","n_sheets":2,"sheets":["Tabelle1","Tabelle2"],"not_rendered":{"defined_names":3},"read":"whole","date_system":"1900"}

{"sheet":"Tabelle1","index":0,"n_rows":21,"n_cols":3,"rows_kept":21}
["Object name","Nr",3]
["Aktivitaet",{"$f":"\"Update \"&A2&\"Set SecurityLevelNr=\"&C1&\" where SecurityLevelNr=1\"","v":"Update AktivitaetSet SecurityLevelNr=3 where SecurityLevelNr=1"}]
["Applikation",{"$f":"\"Update \"&A3&\"Set SecurityLevelNr=\"&C2&\" where SecurityLevelNr=1\"","v":"Update ApplikationSet SecurityLevelNr= where SecurityLevelNr=1"}]
["Applikationabhaengigkeit","Update ApplikationabhaengigkeitSet SecurityLevelNr= where SecurityLevelNr=1"]
["ApplikationKontakt","Update ApplikationKontaktSet SecurityLevelNr= where SecurityLevelNr=1"]
["Dokument","Update DokumentSet SecurityLevelNr= where SecurityLevelNr=1"]
["Kuendigungsfrist","Update KuendigungsfristSet SecurityLevelNr= where SecurityLevelNr=1"]
["LC_Dokument","Update LC_DokumentSet SecurityLevelNr= where SecurityLevelNr=1"]
["Lizenz","Update LizenzSet SecurityLevelNr= where SecurityLevelNr=1"]
["Pendenz","Update PendenzSet SecurityLevelNr= where SecurityLevelNr=1"]
["Person","Update PersonSet SecurityLevelNr= where SecurityLevelNr=1"]
["rolle_securitylevel","Update rolle_securitylevelSet SecurityLevelNr= where SecurityLevelNr=1"]
["SecurityLevel","Update SecurityLevelSet SecurityLevelNr= where SecurityLevelNr=1"]
["ServiceKatalog","Update ServiceKatalogSet SecurityLevelNr= where SecurityLevelNr=1"]
["Vertragselement","Update VertragselementSet SecurityLevelNr= where SecurityLevelNr=1"]
["Vertragselement_Referenz","Update Vertragselement_ReferenzSet SecurityLevelNr= where SecurityLevelNr=1"]
["Vertragsereignis","Update VertragsereignisSet SecurityLevelNr= where SecurityLevelNr=1"]
["Vertragskontakt","Update VertragskontaktSet SecurityLevelNr= where SecurityLevelNr=1"]
["Vertragsleistung","Update VertragsleistungSet SecurityLevelNr= where SecurityLevelNr=1"]
["Vertragspartner","Update VertragspartnerSet SecurityLevelNr= where SecurityLevelNr=1"]
["Vertragsuebersicht","Update VertragsuebersichtSet SecurityLevelNr= where SecurityLevelNr=1"]

{"sheet":"Tabelle2","index":1,"n_rows":25,"n_cols":7,"rows_kept":25}
["ColumnName","TableName","New Level",6,null,"Old Level",0]
["Securitylevelnr","Aktivitaet",{"$f":"\"Update \"&B2&\" set \"&A2&\"=\"&NewLevelNr&\" where \"&A2&\"=\"&OldLevel","v":"Update Aktivitaet set Securitylevelnr=6 where Securitylevelnr=0"}]
["SecurityLevelNr","Applikation","Update Applikation set SecurityLevelNr=6 where SecurityLevelNr=0"]
["SecurityLevelNr","Applikationabhaengigkeit","Update Applikationabhaengigkeit set SecurityLevelNr=6 where SecurityLevelNr=0"]
["SecurityLevelNr","ApplikationKontakt","Update ApplikationKontakt set SecurityLevelNr=6 where SecurityLevelNr=0"]
["SecurityLevelNr","Dokument","Update Dokument set SecurityLevelNr=6 where SecurityLevelNr=0"]
["SecurityLevelNr","Kuendigungsfrist","Update Kuendigungsfrist set SecurityLevelNr=6 where SecurityLevelNr=0"]
["SecurityLevelNr","LC_Dokument","Update LC_Dokument set SecurityLevelNr=6 where SecurityLevelNr=0"]
["SecurityLevelNr","Lizenz","Update Lizenz set SecurityLevelNr=6 where SecurityLevelNr=0"]
["SecurityLevelNr","Pendenz","Update Pendenz set SecurityLevelNr=6 where SecurityLevelNr=0"]
["SecurityLevelNr","Person","Update Person set SecurityLevelNr=6 where SecurityLevelNr=0"]
["SecurityLevelNr","rolle_securitylevel","Update rolle_securitylevel set SecurityLevelNr=6 where SecurityLevelNr=0"]
["SecurityLevelNr","SecurityLevel",{"$f":"\"--Update \"&B13&\" set \"&A13&\"=\"&NewLevelNr&\" where \"&A13&\"=\"&OldLevel","v":"--Update SecurityLevel set SecurityLevelNr=6 where SecurityLevelNr=0"}]
["Level","SecurityObject","Update SecurityObject set Level=6 where Level=0"]
["Server_OSLevelNr","Server_Inventar","Update Server_Inventar set Server_OSLevelNr=6 where Server_OSLevelNr=0"]
["Server_OSLevelNr","Server_OSLevel","Update Server_OSLevel set Server_OSLevelNr=6 where Server_OSLevelNr=0"]
["SecurityLevelNr","ServiceKatalog","Update ServiceKatalog set SecurityLevelNr=6 where SecurityLevelNr=0"]
["SecurityLevel","SLAKatalog","Update SLAKatalog set SecurityLevel=6 where SecurityLevel=0"]
["SecurityLevelNr","Vertragselement","Update Vertragselement set SecurityLevelNr=6 where SecurityLevelNr=0"]
["SecurityLevelNr","Vertragselement_Referenz","Update Vertragselement_Referenz set SecurityLevelNr=6 where SecurityLevelNr=0"]
["SecurityLevelNr","Vertragsereignis","Update Vertragsereignis set SecurityLevelNr=6 where SecurityLevelNr=0"]
["SecurityLevelNr","Vertragskontakt","Update Vertragskontakt set SecurityLevelNr=6 where SecurityLevelNr=0"]
["SecurityLevelNr","Vertragsleistung","Update Vertragsleistung set SecurityLevelNr=6 where SecurityLevelNr=0"]
["SecurityLevelNr","Vertragspartner","Update Vertragspartner set SecurityLevelNr=6 where SecurityLevelNr=0"]
["SecurityLevelNr","Vertragsuebersicht","Update Vertragsuebersicht set SecurityLevelNr=6 where SecurityLevelNr=0"]